bitfinex/quotes_SOLUSD_20250924
["timestamp","ask_amount","ask_price","bid_price","bid_amount"]
[1758697718333,7.09601044,210.63,210.62,36.96]
[1758697718534,2.34834867,210.63,210.62,36.96]
[1758697718836,2.34834867,210.65,210.62,36.96]
[1758697719831,7.09559129,210.65,210.62,36.96]
[1758697720140,0.69,210.64,210.62,36.96]
[1758697720618,0.69,210.64,210.61,36.96]
[1758697721946,7.78601044,210.63,210.61,36.96]
[1758697722123,7.78601044,210.63,210.55,26.2]
[1758697722124,0.69,210.62,210.6,36.96]
[1758697722437,3.03834867,210.61,210.6,36.96]
[1758697723130,6.78646129,210.61,210.6,36.96]
[1758697727020,6.78646129,210.61,210.57,13.59559401]
[1758697727220,6.09646129,210.61,210.58,36.94]
[1758697727717,6.09646129,210.61,210.58,37.63]
[1758697729550,12.55915444,210.63,210.58,37.63]
[1758697729551,7.78623586,210.62,210.58,36.94]
[1758697729926,7.78623586,210.62,210.58,37.63]
[1758697730233,4.01213461,210.7,210.6,13.59559401]
[1758697730234,2.34834867,210.64,210.6,13.59559401]
[1758697730435,2.34834867,210.64,210.61,37.6]
[1758697730738,19.65500012,210.64,210.61,37.6]
[1758697730912,7.09584568,210.64,210.61,37.6]
[1758697732418,2.34834867,210.64,210.62,0.66]
[1758697732617,2.34834867,210.64,210.61,36.94]
[1758697732823,2.34834867,210.64,210.61,37.6]
[1758697733028,2.34834867,210.65,210.62,14.25559401]
[1758697733240,2.34834867,210.65,210.59,4.74845319]
[1758697733445,2.34834867,210.63,210.6,37.6]
[1758697733947,2.34834867,210.63,210.6,36.94]
[1758697734254,2.34834867,210.63,210.61,0.66]
[1758697734420,2.34834867,210.63,210.6,36.94]
[1758697734618,7.09603915,210.63,210.6,36.94]
[1758697735946,2.34834867,210.63,210.6,37.6]
[1758697736333,7.09608765,210.63,210.6,37.6]
[1758697736530,7.09608765,210.63,210.6,36.94]
[1758697737264,7.78608765,210.63,210.6,36.94]
[1758697738048,7.09608765,210.63,210.6,36.94]
[1758697738256,7.78608765,210.63,210.6,36.94]
[1758697739559,5.43773898,210.63,210.6,36.94]
[1758697739741,7.78608765,210.63,210.6,36.94]
[1758697740145,5.43773898,210.63,210.6,36.94]
[1758697740342,7.09608765,210.63,210.6,36.94]
[1758697740549,7.78608765,210.63,210.6,36.94]
[1758697740959,5.43773898,210.63,210.6,36.94]
[1758697741262,7.78608765,210.63,210.6,36.94]
[1758697741856,7.09608765,210.63,210.6,36.94]
[1758697742062,7.09608765,210.63,210.61,0.66]
[1758697742234,7.09608765,210.63,210.6,36.94]
[1758697742762,4.74773898,210.63,210.6,37.6]
[1758697742958,7.09579655,210.64,210.6,37.6]
[1758697743142,7.78579655,210.64,210.6,36.94]
[1758697743342,7.78579655,210.64,210.6,37.6]
[1758697744164,7.78579655,210.64,210.6,36.94]
[1758697744662,7.09579655,210.64,210.6,36.94]
[1758697744962,7.09581586,210.64,210.6,36.94]
[1758697745173,2.34834867,210.63,210.6,36.94]
[1758697745341,3.03834867,210.63,210.6,36.94]
[1758697746662,4.74788719,210.62,210.6,36.94]
[1758697747456,2.34834867,210.61,210.6,36.94]
[1758697748471,2.34834867,210.61,210.6,36.92]
[1758697748838,19.71669213,210.64,210.6,36.92]
[1758697749044,2.34834867,210.63,210.6,37.58]
[1758697750446,7.09613653,210.63,210.6,36.92]
[1758697751769,7.78613653,210.63,210.6,36.92]
[1758697752171,7.09613653,210.63,210.6,36.92]
[1758697752373,7.09613653,210.63,210.6,37.58]
[1758697752552,7.09613653,210.63,210.6,36.92]
[1758697753245,7.78613653,210.63,210.6,36.92]
[1758697755249,7.09613653,210.63,210.6,36.92]
[1758697756560,6.941012,210.63,210.6,36.92]
[1758697756875,6.251012,210.63,210.6,36.92]
[1758697757057,6.251012,210.63,210.6,37.58]
[1758697757257,6.961012,210.63,210.6,36.92]
[1758697758168,6.251012,210.63,210.6,36.92]
[1758697758370,6.961012,210.63,210.6,36.92]
[1758697758766,0.71,210.62,210.6,36.92]
[1758697759173,14.27925462,210.63,210.6,37.62]
[1758697759366,4.74769058,210.63,210.6,37.62]
[1758697759570,6.96091472,210.63,210.6,36.92]
[1758697759969,0.71,210.62,210.6,36.92]
[1758697760276,4.74769058,210.63,210.61,0.7]
[1758697760681,4.74769058,210.63,210.6,36.92]
[1758697760982,4.74769058,210.63,210.6,37.62]
[1758697761358,6.25091472,210.63,210.6,37.62]
[1758697761678,6.25091472,210.63,210.6,36.92]
[1758697761980,6.95091472,210.63,210.6,36.92]
[1758697762159,6.25091472,210.63,210.6,36.92]
[1758697762352,0.7,210.62,210.6,36.92]
[1758697762779,5.44794463,210.62,210.6,36.92]
[1758697763153,4.74794463,210.62,210.6,36.92]
[1758697763754,1.50322414,210.63,210.6,36.92]
[1758697763955,1.50322414,210.63,210.6,37.62]
[1758697764454,11.8671671,210.67,210.6,36.92]
[1758697764660,7.00860017,210.7,210.62,13.59559401]
[1758697764661,13.27757405,210.64,210.62,13.59559401]
[1758697764885,13.27757405,210.64,210.63,51.19559401]
[1758697765189,1.50322414,210.68,210.63,51.19559401]
[1758697765190,6.24977505,210.68,210.63,51.19559401]
[1758697765363,6.24977505,210.68,210.64,0.7]
[1758697765562,1.50322414,210.69,210.66,26.0]
[1758697765758,1.50322414,210.69,210.67,36.9]
[1758697766287,0.7,210.8,210.72,13.59559401]
[1758697766488,15.77229118,210.82,210.74,15.09881815]
[1758697766662,20.51571637,210.82,210.75,0.7]
[1758697766964,6.24664933,210.82,210.76,36.9]
[1758697767164,6.24664933,210.82,210.76,37.6]
[1758697767475,1.50322414,210.8,210.76,36.9]
[1758697767789,0.7,210.79,210.76,36.9]
[1758697768171,0.7,210.78,210.76,36.9]
[1758697768769,4.74405806,210.79,210.76,36.9]
[1758697769184,4.74405806,210.79,210.76,37.6]
[1758697771296,6.24708563,210.8,210.76,37.6]
[1758697773098,0.7,210.79,210.71,0.7]
[1758697773395,0.7,210.81,210.75,26.0]
[1758697773697,1.50322414,210.8,210.76,34.66]
[1758697774003,1.50322414,210.8,210.76,35.36]
[1758697774194,2.20322414,210.8,210.76,35.36]
[1758697775304,1.50322414,210.8,210.76,35.36]
[1758697775601,1.50322414,210.8,210.77,0.7]
[1758697775891,27.50322414,210.78,210.69,0.7]
[1758697776096,1.50322414,210.72,210.7,27.18]
[1758697776808,6.24905007,210.72,210.7,27.18]
[1758697778713,6.94905007,210.72,210.7,27.18]
[1758697779400,6.24905007,210.72,210.7,27.18]
[1758697780103,0.7,210.71,210.61,0.14216157]
[1758697780309,0.7,210.71,210.58,11.87180582]
[1758697780310,1.50322414,210.68,210.65,13.59559401]
[1758697780488,1.50322414,210.68,210.66,36.86]
[1758697781690,1.50322414,210.7,210.66,36.86]
[1758697781893,1.50322414,210.7,210.67,0.7]
[1758697782209,15.77840198,210.7,210.66,36.86]
[1758697782395,15.77840198,210.7,210.67,0.7]
[1758697782594,6.24931458,210.7,210.66,36.86]
[1758697782803,6.24931458,210.7,210.66,37.56]
[1758697783502,1.50322414,210.7,210.67,14.29559401]
[1758697783903,4.74585879,210.72,210.67,13.59559401]
[1758697784110,1.50322414,210.71,210.68,14.29559401]
[1758697784283,1.50322414,210.71,210.69,36.86]
[1758697784482,4.74585879,210.72,210.69,36.86]
[1758697784689,6.24908293,210.72,210.69,36.86]
[1758697785611,1.50322414,210.71,210.69,36.86]
[1758697786813,1.50322414,210.71,210.7,0.7]
[1758697787193,1.50322414,210.71,210.69,36.86]
[1758697787400,2.20322414,210.71,210.69,36.86]
[1758697787914,1.50322414,210.71,210.69,36.86]
[1758697788282,4.74569898,210.72,210.69,36.86]
[1758697788493,1.50322414,210.71,210.69,36.86]
[1758697789314,6.24919187,210.71,210.69,36.86]
[1758697790608,6.24919187,210.71,210.7,36.86]
[1758697791303,18.77383996,210.71,210.7,36.86]
[1758697791700,6.24919187,210.71,210.7,36.86]
[1758697795792,1.50322414,210.71,210.7,37.55]
[1758697796018,1.50322414,210.71,210.7,36.86]
[1758697796924,0.66,210.75,210.7,37.55]
[1758697797140,1.50322414,210.71,210.7,36.86]
[1758697801030,6.24908337,210.71,210.7,36.86]
[1758697801224,4.74585923,210.71,210.7,36.86]
[1758697801521,6.24908337,210.71,210.7,36.86]
[1758697802035,6.90908337,210.71,210.7,36.86]
[1758697802241,6.24908337,210.71,210.7,36.86]
[1758697802438,6.90908337,210.71,210.7,36.86]
[1758697803121,18.77373146,210.71,210.63,13.59559401]
[1758697803319,18.77373146,210.71,210.65,13.59559401]
[1758697803320,0.66,210.7,210.65,13.59559401]
[1758697803503,1.50322414,210.68,210.65,13.59559401]
[1758697803699,1.50322414,210.68,210.66,0.69]
[1758697803930,1.50322414,210.68,210.67,36.84]
[1758697806309,6.24975916,210.68,210.67,36.84]
[1758697807021,6.90975916,210.68,210.67,36.84]
[1758697807448,18.77609673,210.68,210.6,0.69]
[1758697807617,1.50322414,210.63,210.61,36.84]
[1758697807933,1.50322414,210.69,210.65,13.59559401]
[1758697808108,1.50322414,210.69,210.66,36.84]
[1758697808428,4.74540881,210.73,210.66,36.84]
[1758697808429,1.50322414,210.67,210.66,36.84]
[1758697808633,2.16322414,210.67,210.66,36.84]
[1758697809342,6.90998447,210.67,210.66,36.84]
[1758697809542,1.50322414,210.67,210.66,36.84]
[1758697809708,6.24998447,210.67,210.66,36.84]
[1758697810032,6.90998447,210.67,210.66,36.84]
[1758697810535,18.77688531,210.67,210.56,0.69]
[1758697810834,1.50322414,210.61,210.57,51.12559401]
[1758697811512,5.40833808,210.6,210.57,50.43559401]
[1758697811732,0.66,210.59,210.57,50.43559401]
[1758697812432,1.50322414,210.61,210.57,50.43559401]
[1758697812617,0.66,210.64,210.59,13.59559401]
[1758697812931,2.16322414,210.63,210.6,36.84]
[1758697813134,0.66,210.63,210.6,36.84]
[1758697813333,2.16322414,210.63,210.6,36.84]
[1758697813843,6.91091169,210.63,210.6,36.84]
[1758697814146,2.16322414,210.63,210.6,36.84]
[1758697814711,6.25090475,210.63,210.6,36.84]
[1758697814913,6.91090475,210.63,210.6,36.84]
[1758697816626,5.40768061,210.63,210.6,36.84]
[1758697818241,3.06874758,210.62,210.6,36.84]
[1758697820026,4.74768061,210.63,210.6,36.84]
[1758697820231,5.46768061,210.63,210.6,36.84]
[1758697820439,5.41768061,210.63,210.6,36.84]
[1758697822031,4.74768061,210.63,210.6,36.84]
[1758697822226,5.41768061,210.63,210.6,36.84]
[1758697823144,2.34874758,210.65,210.61,0.66]
[1758697823316,2.34874758,210.65,210.62,0.66]
[1758697823521,0.67,210.64,210.63,36.84]
[1758697823722,2.34874758,210.65,210.63,36.84]
[1758697823923,3.01874758,210.65,210.63,36.84]
[1758697824732,4.74743638,210.64,210.63,36.84]
[1758697825949,5.41743638,210.64,210.63,36.84]
[1758697826147,4.74743638,210.64,210.63,36.84]
[1758697826727,5.41743638,210.64,210.63,36.84]
[1758697827530,2.34874758,210.65,210.63,36.84]
[1758697827724,7.76596165,210.65,210.63,36.84]
[1758697827946,3.01874758,210.65,210.63,36.84]
[1758697828542,4.74712525,210.66,210.63,36.84]
[1758697828745,2.34874758,210.67,210.64,0.66]
[1758697828945,2.34874758,210.67,210.65,36.84]
[1758697829550,7.09558976,210.67,210.65,36.84]
[1758697829745,0.67,210.66,210.65,36.84]
[1758697830755,5.41698566,210.66,210.65,36.84]
[1758697831825,4.74698566,210.66,210.65,36.84]
[1758697836550,5.41698566,210.66,210.65,36.84]
[1758697838949,4.74698566,210.66,210.65,36.84]
[1758697842049,4.74676033,210.67,210.65,36.84]
[1758697842451,5.41676033,210.67,210.65,36.84]
[1758697846358,7.76573324,210.66,210.65,36.84]
[1758697846570,19.6331974,210.66,210.63,36.82]
[1758697846776,0.67,210.65,210.63,36.82]
[1758697847142,0.67,210.64,210.63,36.82]
[1758697848454,7.76618396,210.64,210.63,36.82]
[1758697850345,0.67,210.69,210.63,37.48]
[1758697850548,16.62664301,210.67,210.63,37.48]
[1758697850762,2.34874758,210.67,210.63,37.48]
[1758697851858,4.74698566,210.66,210.63,37.48]
[1758697852557,2.34874758,210.65,210.63,36.82]
[1758697852966,17.31444982,210.66,210.63,36.82]
[1758697853268,19.6631974,210.66,210.63,36.82]
[1758697854062,2.34874758,210.64,210.63,36.82]
[1758697854471,3.04874758,210.64,210.63,36.82]
[1758697855070,4.74766177,210.63,210.59,0.68]
[1758697855376,4.74766177,210.63,210.57,4.748917]
[1758697855377,0.7,210.62,210.57,50.41559401]
[1758697855583,2.34874758,210.61,210.57,36.82]
[1758697855751,2.34874758,210.61,210.57,37.5]
[1758697856680,4.74833808,210.6,210.57,37.5]
[1758697857561,5.44808161,210.62,210.57,37.5]
[1758697857768,5.44808161,210.62,210.58,0.68]
[1758697857974,21.37697278,210.64,210.59,13.59559401]
[1758697858174,21.37697278,210.64,210.6,37.5]
[1758697858690,21.37697278,210.64,210.61,0.68]
[1758697858982,7.79635872,210.64,210.6,36.82]
[1758697859280,7.79635872,210.64,210.6,37.5]
[1758697859859,7.09635872,210.64,210.6,37.5]
[1758697860250,17.3162021,210.64,210.6,37.5]
[1758697860769,5.44761114,210.64,210.6,37.5]
[1758697861091,2.34874758,210.65,210.6,37.5]
[1758697861092,7.09597471,210.65,210.61,0.68]
[1758697861275,7.09597471,210.65,210.62,0.68]
[1758697861792,0.7,210.64,210.6,36.82]
[1758697861978,7.09597471,210.65,210.6,37.5]
[1758697862286,7.79597471,210.65,210.6,37.5]
[1758697863371,7.79597471,210.65,210.6,36.82]
[1758697863573,7.79597471,210.65,210.61,0.68]
[1758697863969,0.7,210.64,210.6,36.82]
[1758697864479,0.7,210.63,210.6,36.82]
[1758697864654,0.7,210.62,210.6,36.82]
[1758697864860,0.7,210.61,210.6,36.82]
[1758697865586,4.74788719,210.62,210.6,36.82]
[1758697865757,5.44788719,210.62,210.6,36.82]
[1758697867869,14.28129388,210.64,210.61,0.68]
[1758697867870,2.34874758,210.64,210.61,0.68]
[1758697868075,2.34874758,210.64,210.62,0.68]
[1758697868282,2.34874758,210.64,210.6,37.5]
[1758697868486,2.34874758,210.64,210.61,0.68]
[1758697869873,7.09619622,210.64,210.61,0.68]
[1758697870865,7.09591523,210.66,210.62,0.68]
[1758697871385,7.09591523,210.66,210.63,36.8]
[1758697872588,7.79591523,210.66,210.63,36.8]
[1758697873174,7.09591523,210.66,210.63,36.8]
[1758697873588,7.77591523,210.66,210.63,36.8]
[1758697873767,7.09591523,210.66,210.63,36.8]
[1758697875992,7.09591523,210.66,210.63,37.5]
[1758697876289,4.74673715,210.68,210.64,0.7]
[1758697877270,4.74563401,210.72,210.65,13.59559401]
[1758697877471,7.09438159,210.72,210.66,0.7]
[1758697877798,7.09438159,210.72,210.67,36.8]
[1758697878108,7.09438159,210.72,210.68,0.7]
[1758697878399,7.77438159,210.72,210.68,0.7]
[1758697878593,1.50207853,210.71,210.68,0.7]
[1758697880899,1.50207853,210.71,210.67,36.8]
[1758697881075,6.24771254,210.72,210.68,0.66]
[1758697884099,6.94771254,210.72,210.68,0.66]
[1758697884797,0.7,210.71,210.68,13.59559401]
[1758697886089,6.24771254,210.72,210.68,13.59559401]
[1758697886600,1.50207853,210.73,210.7,13.59559401]
[1758697886789,1.50207853,210.73,210.71,36.78]
[1758697888420,4.69426578,210.75,210.72,14.25559401]
[1758697888421,3.99426578,210.75,210.72,14.25559401]
[1758697888584,3.99426578,210.75,210.74,13.59559401]
[1758697888783,3.99426578,210.75,210.74,51.03559401]
[1758697889390,3.99426578,210.75,210.74,52.67983411]
[1758697889900,3.99426578,210.75,210.74,57.42501774]
[1758697890085,3.99426578,210.75,210.74,71.68501774]
[1758697890294,3.99426578,210.75,210.74,57.42501774]
[1758697890487,3.99426578,210.75,210.74,72.1595361]
[1758697890902,0.2,210.85,210.82,13.59559401]
[1758697891104,0.2,210.85,210.84,13.59559401]
[1758697891491,0.2,210.85,210.84,14.25559401]
[1758697891802,0.2,210.85,210.84,13.59559401]
[1758697892194,0.2,210.85,210.84,14.25559401]
[1758697892506,0.2,210.85,210.84,13.59559401]
[1758697894511,5.64270808,210.85,210.81,26.0]
[1758697894696,0.7,210.84,210.82,36.76]
[1758697894902,0.7,210.83,210.82,36.76]
[1758697895995,5.44315799,210.83,210.82,36.76]
[1758697896299,5.44315799,210.83,210.79,36.74]
[1758697896300,17.30105297,210.83,210.79,36.74]
[1758697896504,17.30105297,210.83,210.71,26.0]
[1758697896505,1.50207853,210.8,210.71,26.0]
[1758697896703,1.50207853,210.76,210.72,36.74]
[1758697897013,2.20207853,210.76,210.72,36.74]
[1758697897500,4.74495848,210.75,210.72,36.74]
[1758697897813,2.20207853,210.76,210.73,13.59559401]
[1758697898018,2.20207853,210.78,210.73,14.25559401]
[1758697899091,4.74450823,210.77,210.73,14.25559401]
[1758697899625,1.50207853,210.78,210.75,13.59559401]
[1758697899791,1.50207853,210.78,210.76,36.74]
[1758697900437,6.2464753,210.78,210.76,36.74]
[1758697901732,0.7,210.77,210.76,36.74]
[1758697902232,0.7,210.77,210.74,36.74]
[1758697902425,1.50207853,210.75,210.74,36.74]
[1758697902595,2.20207853,210.75,210.74,36.74]
[1758697903203,2.20207853,210.75,210.61,11.8700216]
[1758697903420,1.50207853,210.72,210.67,13.59559401]
[1758697903624,4.74585923,210.71,210.67,13.59559401]
[1758697903798,4.74585923,210.71,210.67,14.25559401]
[1758697904296,4.74585923,210.71,210.67,13.59559401]
[1758697904497,4.74585923,210.71,210.68,0.66]
[1758697904696,4.74585923,210.71,210.69,36.74]
[1758697905324,4.74585923,210.71,210.69,37.4]
[1758697905615,5.44585923,210.71,210.69,36.74]
[1758697906724,4.74585923,210.71,210.69,36.74]
[1758697908190,2.20207853,210.7,210.69,36.74]
[1758697908498,2.20207853,210.7,210.66,13.59559401]
[1758697908710,0.7,210.69,210.67,36.74]
[1758697909217,1.50207853,210.7,210.67,36.74]
[1758697909401,4.74585923,210.71,210.68,0.66]
[1758697911315,4.74585923,210.71,210.67,36.74]
[1758697911618,4.74585923,210.71,210.67,37.43]
[1758697911813,4.74585923,210.71,210.67,36.74]
[1758697912009,1.50207853,210.75,210.71,13.59559401]
[1758697912212,1.50207853,210.77,210.72,0.69]
[1758697912520,1.50207853,210.78,210.73,13.59559401]
[1758697912721,1.50207853,210.78,210.74,37.43]
[1758697912903,1.50207853,210.78,210.74,36.74]
[1758697913091,16.60026559,210.84,210.75,0.69]
[1758697913298,1.50207853,210.81,210.76,13.59559401]
[1758697913522,1.50207853,210.81,210.77,37.43]
[1758697914014,2.17207853,210.81,210.77,37.43]
[1758697914329,4.74383301,210.8,210.77,37.43]
[1758697916817,1.50207853,210.81,210.77,37.43]
[1758697917008,4.74357322,210.82,210.78,14.28559401]
[1758697917210,4.74357322,210.82,210.78,13.59559401]
[1758697917420,4.74357322,210.82,210.78,14.28559401]
[1758697917934,2.17207853,210.81,210.76,0.69]
[1758697918122,1.50207853,210.79,210.74,13.59559401]
[1758697918311,0.67,210.78,210.75,35.42]
[1758697918511,2.17207853,210.77,210.75,35.42]
[1758697918911,4.74473334,210.76,210.75,35.42]
[1758697919519,6.24681187,210.76,210.75,35.42]
[1758697921019,1.50207853,210.76,210.75,35.42]
[1758697921217,6.24681187,210.76,210.75,35.42]
[1758697921424,6.91681187,210.76,210.75,35.42]
[1758697922006,6.91681187,210.76,210.71,13.59559401]
[1758697922213,4.74563401,210.72,210.71,36.74]
[1758697922423,5.41563401,210.72,210.71,36.74]
[1758697922622,4.74563401,210.72,210.71,36.74]
[1758697922938,6.91771254,210.72,210.71,36.74]
[1758697923240,18.78179758,210.72,210.69,36.74]
[1758697923412,1.50207853,210.7,210.69,36.74]
[1758697923616,4.74540632,210.74,210.69,37.43]
[1758697923816,1.50207853,210.73,210.69,37.43]
[1758697924235,6.24769615,210.73,210.69,37.43]
[1758697924630,1.50207853,210.73,210.7,13.59559401]
[1758697925026,0.67,210.76,210.71,0.69]
[1758697925027,1.50207853,210.75,210.71,0.69]
[1758697925228,6.24658676,210.77,210.72,50.33559401]
[1758697925439,6.24658676,210.77,210.74,13.59559401]
[1758697925639,1.50207853,210.81,210.76,13.59559401]
[1758697925947,1.50207853,210.81,210.77,0.69]
[1758697926118,1.50207853,210.81,210.78,36.74]
[1758697926323,6.24589917,210.81,210.78,36.74]
[1758697926960,1.50207853,210.83,210.79,14.28559401]
[1758697927140,1.50207853,210.83,210.81,13.59559401]
[1758697927330,1.50207853,210.83,210.82,50.33559401]
[1758697928349,1.70207853,210.85,210.82,50.33559401]
[1758697929958,1.70207853,210.85,210.82,51.02559401]
[1758697930423,1.70207853,210.85,210.82,50.33559401]
[1758697930625,6.4448489,210.85,210.82,50.33559401]
[1758697932031,4.94277037,210.85,210.82,50.33559401]
[1758697932325,0.2,210.85,210.84,13.59559401]
[1758697932521,4.94270808,210.85,210.84,36.72]
[1758697932722,0.2,210.85,210.84,50.31559401]
[1758697933722,0.2,210.85,210.84,51.00559401]
[1758697936124,0.2,210.85,210.84,55.74852703]
[1758697936754,0.2,210.85,210.84,57.39276713]
[1758697937457,0.2,210.85,210.84,57.86706043]
[1758697938252,0.2,210.85,210.84,72.12706043]
[1758697938552,0.2,210.85,210.84,72.96636672]
[1758697938942,0.2,210.85,210.84,70.6249819]
[1758697939139,0.2,210.85,210.84,72.96636672]
[1758697940038,0.2,210.85,210.84,70.1506886]
[1758697940241,0.2,210.85,210.84,72.49207342]
[1758697940850,0.2,210.85,210.84,72.96636672]
[1758697941147,0.2,210.85,210.84,70.6249819]
[1758697941337,0.2,210.85,210.84,72.49207342]
[1758697941537,0.2,210.85,210.84,72.96636672]
[1758697945634,0.2,210.85,210.84,74.86710088]
[1758697945838,0.2,210.85,210.84,35.80571606]
[1758697946044,0.2,210.85,210.84,72.94636672]
[1758697946247,0.2,210.85,210.84,74.8471912]
[1758697948451,1e-08,210.85,210.84,74.8471912]
[1758697955260,1e-08,210.85,210.84,72.11420515]
[1758697955460,1e-08,210.85,210.84,71.63991185]
[1758697955764,1e-08,210.85,210.84,71.78207342]
[1758697957054,1e-08,210.85,210.84,72.46207342]
[1758697957460,1e-08,210.85,210.84,74.36280758]
[1758697958761,1e-08,210.88,210.87,53.85559401]
[1758697958956,1e-08,210.88,210.87,93.51336622]
[1758697959155,1e-08,210.88,210.87,97.78139866]
[1758697959558,1e-08,210.88,210.87,99.68177161]
[1758697959947,1e-08,210.88,210.87,100.36177161]
[1758697960770,0.2,210.91,210.9,56.3391404]
[1758697960959,0.2,210.91,210.9,93.51329876]
[1758697961165,0.2,210.91,210.9,97.78072408]
[1758697961539,0.2,210.91,210.9,99.68100675]
[1758697962447,0.2,210.91,210.9,97.78072408]
[1758697963779,0.92,210.91,210.9,97.78072408]
[1758697964347,0.92,210.91,210.9,39.59559401]
[1758697964548,0.92,210.91,210.9,76.27559401]
[1758697964847,0.92,210.91,210.9,81.01717769]
[1758697965068,0.92,210.91,210.9,81.15933926]
[1758697965956,0.92,210.91,210.9,39.59559401]
[1758697966165,0.92,210.91,210.9,50.27559401]
[1758697966361,8.00274369,210.91,210.9,50.27559401]
[1758697966560,8.00274369,210.91,210.9,36.68]
[1758697972478,19.85614087,210.91,210.84,39.59559401]
[1758697972675,19.85614087,210.91,210.79,5.41405717]
[1758697972676,2.34138482,210.86,210.85,36.68]
[1758697972873,3.04138482,210.86,210.85,36.68]
[1758697974384,19.64007589,210.86,210.74,0.67]
[1758697974582,2.34138482,210.81,210.75,50.27559401]
[1758697974768,0.7,210.8,210.75,50.27559401]
[1758697974978,0.7,210.79,210.78,39.59559401]
[1758697975173,3.04138482,210.79,210.71,0.67]
[1758697975468,2.34138482,210.76,210.72,36.68]
[1758697975676,0.7,210.75,210.73,13.59559401]
[1758697975880,2.34138482,210.76,210.74,36.68]
[1758697976067,2.34138482,210.75,210.74,36.68]
[1758697976474,7.7863433,210.75,210.66,13.59559401]
[1758697976673,2.34138482,210.71,210.67,37.37]
[1758697976891,0.7,210.74,210.68,0.67]
[1758697976892,2.34138482,210.72,210.68,0.67]
[1758697977065,2.34138482,210.72,210.67,36.7]
[1758697977391,2.34138482,210.72,210.68,14.26559401]
[1758697977392,3.04138482,210.72,210.68,14.26559401]
[1758697977778,3.04138482,210.72,210.68,19.0120784]
[1758697978784,0.7,210.72,210.68,19.0120784]
[1758697979090,3.04138482,210.72,210.68,18.3420784]
[1758697980070,2.34138482,210.72,210.68,19.0120784]
[1758697980275,0.7,210.72,210.68,19.0120784]
[1758697980478,2.34138482,210.72,210.68,19.0120784]
[1758697981392,2.34138482,210.7,210.63,0.1]
[1758697981588,0.7,210.71,210.64,50.29559401]
[1758697981589,2.34138482,210.65,210.64,50.29559401]
[1758697981805,3.04138482,210.65,210.64,50.29559401]
[1758697984075,7.78859583,210.65,210.64,36.7]
[1758697984880,3.04138482,210.65,210.64,36.7]
[1758697985192,2.34138482,210.65,210.64,36.7]
[1758697985375,3.04138482,210.65,210.64,36.7]
[1758697986892,7.78859583,210.65,210.64,36.7]
[1758697987582,2.34138482,210.65,210.64,36.7]
[1758697987897,0.7,210.72,210.65,13.59559401]
[1758697988194,2.34138482,210.69,210.67,13.59559401]
[1758697988503,2.34138482,210.69,210.68,36.72]
[1758697990602,2.34138482,210.69,210.68,50.31559401]
[1758697993289,2.34138482,210.69,210.68,50.98559401]
[1758697993829,2.34138482,210.69,210.68,36.72]
[1758697993988,3.04138482,210.69,210.68,36.72]
[1758697994394,2.34138482,210.69,210.68,36.72]
[1758697995308,7.08769456,210.69,210.68,36.72]
[1758697995704,7.80769456,210.69,210.68,36.72]
[1758697995910,7.08769456,210.69,210.68,36.72]
[1758697996498,19.67346892,210.69,210.63,0.1]
[1758697996713,2.34138482,210.64,210.63,0.1]
[1758697997032,2.34138482,210.64,210.63,50.41559401]
[1758697998231,7.0888212,210.64,210.63,36.82]
[1758697999598,2.34138482,210.64,210.63,36.82]
[1758697999903,4.74698566,210.66,210.63,36.82]
[1758698000094,2.34138482,210.64,210.63,0.1]
[1758698000516,29.02138482,210.64,210.57,0.1]
[1758698000809,1.50402464,210.58,210.57,0.1]